[Event "41st Zalakaros Festival 2022"]
[Site "Zalakaros"]
[Date "2022.06.12"]
[Round "8.1"]
[White "Peczely, Sebastian Zsombor"]
[Black "Kantor, Gergely"]
[Result "1/2-1/2"]
[ECO "C00"]
[WhiteElo "2313"]
[BlackElo "2587"]
[Annotator "TA"]
[PlyCount "69"]
[EventDate "2022.06.05"]
[EventType "swiss"]
[EventCountry "HUN"]
[SourceTitle "playchess.com"]
[Source "ChessBase"]
[SourceQuality "1"]
[TimeControl "40/5400+30:1800+30"]

{[%evp 11,69,9,15,-10,-6,-9,-8,-16,-1,-8,-5,-5,22,-15,-19,-12,-20,-16,0,0,0,4,2,-52,-58,-62,-52,-56,-56,-68,-67,-50,-10,-11,-14,-13,8,-8,-14,-13,0,0,0,0,0,0,0,0,0,0,0,0,87,0,0,0,87,0,0,-137]} 1. e4 {[%emt 0:00:33]} e6 {[%emt 0:01:24]} 2. Nf3 {[%emt 0:02:13]} d5 {[%emt 0:00:40]} 3. exd5 {[%emt 0:00:08]} exd5 {[%emt 0:00:03]} 4. d4 {[%emt 0:00:06]} Bd6 {[%emt 0:00:08]} 5. c4 {[%emt 0:00:19]} Nf6 {[%emt 0:00:04]} 6. Nc3 {[%emt 0:00:50]} O-O {[%emt 0:00:06]} 7. h3 {[%emt 0:05:09] C01: French: Exchange Variation.} Re8+ {[%emt 0:05:18]} 8. Be2 {[%emt 0:00:07]} dxc4 {[%emt 0:18:05]} 9. O-O {[%emt 0:00:16]} Nbd7 {[%emt 0:04:40]} 10. Bxc4 {[%emt 0:10:17]} Nb6 {[%emt 0:02:30]} 11. Bb3 {[%emt 0:04:28]} Be6 {[%emt 0:01:52] [#]} 12. Re1 $146 {[%emt 0:02:40]} ({Predecessor:} 12. Bg5) 12... Bxb3 {[%emt 0:02:54]} 13. Rxe8+ {[%emt 0:00:54]} Qxe8 {[%emt 0:00:51]} 14. Qxb3 {[%emt 0:00:29]} c6 {[%emt 0:06:11]} 15. Bg5 {[%emt 0:05:03]} Nfd5 {[%emt 0:01:41]} 16. a4 {[%emt 0:05:56] Threatening a5.} h6 {[%emt 0:14:43]} 17. a5 {[%emt 0:11:38]} (17. Bh4 $11) 17... hxg5 {[%emt 0:08:52]} 18. axb6 {[%emt 0:13:20]} Nxc3 {[%emt 0:01:59]} 19. bxc3 {[%emt 0:01:37]} axb6 {[%emt 0:00:09]} 20. Re1 {[%emt 0:09:18]} Qd8 {[%emt 0:00:47]} 21. c4 {[%emt 0:04:17]} Bc7 {[%emt 0:03:39]} 22. Qe3 {[%emt 0:03:03]} Bf4 {[%emt 0:00:46]} 23. Qe4 {[%emt 0:02:14]} g6 {[%emt 0:03:17]} 24. g3 {[%emt 0:02:06]} (24. h4 $5) 24... Bd6 {[%emt 0:00:09]} 25. Qe3 {[%emt 0:00:34]} Ra3 {[%emt 0:02:51]} 26. Qe8+ {[%emt 0:08:26]} Qxe8 {[%emt 0:00:07]} 27. Rxe8+ $11 {[%emt 0:00:06][%mdl 4096] Endgame KRB-KRN} Kg7 {[%emt 0:04:33]} 28. Kg2 {[%emt 0:00:44]} Kf6 {[%emt 0:13:08]} 29. Nd2 {[%emt 0:00:56] [#] Hoping for Ne4+.} Be7 {[%emt 0:00:38]} 30. d5 $1 {[%emt 0:00:44]} cxd5 {[%emt 0:01:06]} 31. cxd5 {[%emt 0:00:04] Black must now prevent Ne4+.} Ra4 {[%emt 0:00:58] Against Ne4+} (31... Bc5 $11 {remains equal.}) 32. Kf3 {[%emt 0:00:47]} (32. d6 $1 $16 Bxd6 33. Ne4+ Rxe4 34. Rxe4) 32... Ra3+ {[%emt 0:00:22]} 33. Kg2 {[%emt 0:01:18]} (33. Ke2 $11 Ra2 34. Kd3 Ra3+ 35. Kc2 Ra2+ 36. Kd3 Ra3+ 37. Ke2) 33... Ra4 $16 {[%emt 0:01:10]} 34. Kf3 {[%emt 0:00:06]} (34. d6 $1 $16 Bxd6 35. Ne4+ Rxe4 36. Rxe4) 34... Ra3+ $11 {[%emt 0:00:12]} 35. Ke4 {Weighted Error Value: White=0.15 (very precise) /Black=0.11 (very precise)} (35. Ke2 $11 Ra2 36. Kd3) 1/2-1/2

[Event "41st Zalakaros Festival 2022"]
[Site "Zalakaros"]
[Date "2022.06.12"]
[Round "8.2"]
[White "Horvath, Adam"]
[Black "Sammed Jaykumar, Shete"]
[Result "0-1"]
[ECO "B56"]
[WhiteElo "2513"]
[BlackElo "2400"]
[Annotator "TA"]
[PlyCount "68"]
[EventDate "2022.06.05"]
[EventType "swiss"]
[EventCountry "HUN"]
[SourceTitle "playchess.com"]
[Source "ChessBase"]
[SourceQuality "1"]
[TimeControl "40/5400+30:1800+30"]

{[%evp 14,68,25,12,12,0,18,0,2,0,8,0,0,9,-7,0,-15,-38,0,0,0,0,9,6,76,13,101,112,108,98,109,110,101,97,97,99,100,97,87,0,0,-66,-66,-66,-80,-80,-87,-424,-27,-19,-18,-12838,-12838,-29989,-29990,-29997,-29998]} 1. e4 {[%emt 0:00:36]} c5 {[%emt 0:00:35]} 2. Nf3 {[%emt 0:00:08]} d6 {[%emt 0:00:06]} 3. d4 {[%emt 0:00:05]} cxd4 {[%emt 0:00:03]} 4. Nxd4 {[%emt 0:00:05]} Nf6 {[%emt 0:00:05]} 5. Nc3 {[%emt 0:00:06]} Nc6 {[%emt 0:00:04]} 6. f3 {[%emt 0:00:06]} e5 {[%emt 0:00:06]} 7. Nb3 {[%emt 0:00:04]} Be6 {[%emt 0:00:05]} 8. Nd5 {[%emt 0:01:06]} Be7 $1 {[%emt 0:00:38] 8...Be7 is better than 8...Bxd5. B56: Classical Sicilian: Unusual Lines.} 9. c4 {[%emt 0:01:24]} O-O {[%emt 0:00:39]} 10. Be3 {[%emt 0:00:14]} a5 {[%emt 0:00:20][%cal Ba7a5,Ba5a4][%mdl 32] The position is equal.} 11. Qd2 {[%emt 0:00:41]} a4 {[%emt 0:05:55]} 12. Nc1 {[%emt 0:00:20]} b5 {[%emt 0:00:18]} 13. Nxe7+ {[%emt 0:27:07]} Nxe7 {[%emt 0:00:24]} 14. cxb5 {[%emt 0:00:05]} d5 {[%emt 0:00:46]} 15. Bc5 {[%emt 0:07:35] [#]} Qc7 $146 {[%emt 0:16:36]} (15... Re8 $5 {[%cal Rd5e4]}) ({Predecessor:} 15... Rc8 16. Qb4 Re8 17. b6 dxe4 18. b7 Rb8 19. fxe4 Nc6 20. Qxa4 Nd4 21. Bxd4 exd4 {0-1 (35) Christiansen,J (2610)-Shankland,S (2691) chess24.com INT 2020}) 16. Qb4 {[%emt 0:06:41]} dxe4 {[%emt 0:12:32]} 17. fxe4 {[%emt 0:18:11]} (17. Bxe7 Nd5 18. Bd6 Qb6 $17) 17... Rfe8 {[%emt 0:17:46][%cal Of6e4]} (17... Rfd8 $5 {[%cal Rf6e4]} 18. Nd3 (18. Bxe7 Rd4 $11) 18... Ng6 $11) 18. Nd3 {[%emt 0:08:30]} Ng6 {[%emt 0:01:43]} (18... Qb7 $11) 19. Be2 {[%emt 0:09:52]} (19. Be3 $1 $16) 19... Nf4 {[%emt 0:17:37]} (19... Qb7 $1 $11 {keeps the balance.}) 20. Nxf4 $16 {[%emt 0:01:11]} exf4 {[%emt 0:00:06]} 21. b6 {[%emt 0:01:42]} Qb7 {[%emt 0:00:50]} 22. O-O $1 {[%emt 0:01:44]} Nxe4 {[%emt 0:01:58]} 23. Bd4 {[%emt 0:06:10] A strong pair of Bishops.} (23. Rxf4 Nxc5 24. Qxc5 Rac8 $14) 23... Bd5 {[%emt 0:01:00][%cal Oe4g3]} 24. Bf3 $1 {[%emt 0:01:08]} Ng5 {[%emt 0:02:59][%cal Rd5f3]} 25. Bxd5 {[%emt 0:02:10]} Qxd5 {[%emt 0:00:04]} 26. Qc5 {[%emt 0:04:44]} (26. h4 $1 $16 {[%cal Rh4g5]} Ne6 27. Bf2) 26... Qd7 $1 $11 {[%emt 0:00:43] Strongly threatening ...Ne6.} 27. Rad1 {[%emt 0:01:00]} ({Don't play} 27. Rxf4 Ne6 28. Qf5 Rad8 29. Bxg7 (29. Re4 $2 g6 $19) 29... Nxf4 30. Qxf4 Qd6 31. Qxd6 Rxd6 $17) (27. b7 Rab8 $1 28. Qc3 (28. Rxf4 Ne6 $17) 28... Ne6 $17) (27. Bc3 $11 Qg4 28. Kh1 (28. Qd4 Nh3+ 29. Kh1 Re2 $11)) 27... Qg4 $1 $15 {[%emt 0:01:33]} 28. Kh1 $1 {[%emt 0:00:50]} Re2 {[%emt 0:00:32][%csl Ge2][%cal Rg4g2]} 29. Qd5 {[%emt 0:00:22]} Rae8 {[%emt 0:00:07][%cal Of4f3] ( -> ...f3!). The board is on fire.} 30. Bf2 $2 {[%emt 0:00:38][%mdl 8192]} (30. h3 $17 Qg3 31. Bf2 Rxf2 32. Rxf2 Qxf2 33. Qb5 (33. Qxg5 $2 f3 $17)) 30... Ne4 $2 {[%emt 0:00:46]} (30... h6 $19 {White must now prevent ...f3.} 31. Qd6 Ne4) 31. h3 $1 $11 {[%emt 0:00:05]} Qg6 $40 {[%emt 0:00:56][%mdl 128] Black is up to no good.} ({Don't do} 31... Nxf2+ 32. Rxf2 $1 Re1+ 33. Rf1 Qxd1 34. Qxd1 Rxd1 35. Rxd1 $14) 32. b7 $2 {[%emt 0:00:09][%mdl 8192]} f3 $19 {[%emt 0:00:29][%csl Gf3][%cal Rg6g2]} 33. g4 {[%emt 0:01:12]} Qh6 {[%emt 0:00:43]} ({Weaker is} 33... Nxf2+ 34. Rxf2 Qb6 35. Rxe2 fxe2 36. Re1 $15) 34. Bh4 {[%emt 0:00:55]} Ng3+ {[%emt 0:00:29] Weighted Error Value: White=0.62/Black=0.33} 0-1

[Event "41st Zalakaros Festival 2022"]
[Site "Zalakaros"]
[Date "2022.06.12"]
[Round "8.3"]
[White "Bodrogi, Bendeguz"]
[Black "Csonka, Balazs"]
[Result "0-1"]
[ECO "A06"]
[WhiteElo "2198"]
[BlackElo "2498"]
[Annotator "TA"]
[PlyCount "60"]
[EventDate "2022.06.05"]
[EventType "swiss"]
[EventCountry "HUN"]
[SourceTitle "playchess.com"]
[Source "ChessBase"]
[SourceQuality "1"]
[TimeControl "40/5400+30:1800+30"]

{[%evp 9,60,-71,-69,-81,-82,-93,-79,-74,-75,-72,-59,-54,-7,0,-10,-37,-26,-23,-29,-89,-66,-60,-55,-70,-46,-72,-53,-55,-54,-67,-78,-66,-77,-65,-79,-217,-216,-261,-245,-256,-233,-295,-255,-263,-266,-855,-846,-1400,-1368,-29990,-29991,-29991,-29992]} 1. Nf3 {[%emt 0:00:34]} d5 {[%emt 0:01:25]} 2. g3 {[%emt 0:00:18]} Nd7 {[%emt 0:01:42]} 3. Bg2 {[%emt 0:01:57]} e5 {[%emt 0:00:23][%cal Be7e5,Be5e4][%mdl 32]} 4. d4 {[%emt 0:00:06]} e4 {[%emt 0:01:38]} 5. Ne5 {[%emt 0:00:07] [#]} Nb6 $146 {[%emt 0:08:32] Strongly threatening ...f6.} ({Predecessor:} 5... Ngf6 6. O-O Bd6 7. Nxd7 Bxd7 8. c4 c6 9. cxd5 cxd5 10. Bg5 h6 11. Bxf6 Qxf6 {1-0 (142) Niedbala,B (2385)-Sadzikowski,D (2525) Katowice 2021}) 6. c4 {[%emt 0:09:50] A07: Réti Opening: New York and Capablanca Systems.} f6 {[%emt 0:06:31]} 7. c5 {[%emt 0:00:14]} fxe5 {[%emt 0:00:08]} 8. cxb6 {[%emt 0:00:05] Black is better.} axb6 {[%emt 0:00:30]} 9. dxe5 {[%emt 0:00:11]} Bc5 {[%emt 0:01:25]} ({Of course not} 9... Bb4+ $6 10. Bd2 Bxd2+ 11. Qxd2 $11) 10. Nc3 {[%emt 0:22:21]} Ne7 {[%emt 0:05:44]} (10... c6 $1 $15) 11. Rb1 $1 $11 {[%emt 0:03:17]} Bb4 {[%emt 0:13:36]} 12. a3 {[%emt 0:00:59]} Bxc3+ {[%emt 0:05:00]} 13. bxc3 {[%emt 0:00:12]} Bf5 {[%emt 0:00:42]} 14. Ra1 {[%emt 0:13:08]} (14. O-O $11 {keeps the balance.}) 14... Qd7 {[%emt 0:10:26]} 15. O-O {[%emt 0:15:43]} O-O {[%emt 0:06:16]} 16. Qb3 {[%emt 0:02:49]} Qa4 {[%emt 0:12:38]} 17. Qa2 {[%emt 0:03:15]} h6 {[%emt 0:08:13] Inhibits Bg5. 0x0.001762e2457edp-1022s more active pieces. The white rooks are badly placed.} 18. Be3 {[%emt 0:01:18]} Qc6 {[%emt 0:00:47]} 19. Rfd1 {[%emt 0:02:24]} Ra4 {[%emt 0:01:08]} ({Don't play} 19... Qxc3 20. Rac1 Qxe5 21. Bf4 $11) 20. Rd4 {[%emt 0:01:26]} Rfa8 {[%emt 0:00:32]} 21. Qb3 {[%emt 0:03:51]} Be6 {[%emt 0:02:11][%cal Bf5e6,Be6g4,Bg4e2,Be2c4,Bc4d5][%mdl 32]} 22. g4 {[%emt 0:02:25] This move loses the game for White.} (22. Qb2 $17 {was worth a try.}) 22... Bxg4 $19 {[%emt 0:03:14]} 23. Bxe4 {[%emt 0:07:56][%cal Rb3d5]} Bxe2 {[%emt 0:00:38]} 24. Bg2 {[%emt 0:00:10]} Bc4 {[%emt 0:00:50]} 25. Qb1 {[%emt 0:01:27]} Rxa3 {[%emt 0:02:58]} 26. Rxa3 {[%emt 0:00:04]} Rxa3 {[%emt 0:00:06]} 27. Rg4 $2 {[%emt 0:01:19]} (27. Rd1) 27... Qa4 {[%emt 0:03:06] [#] Threatens to win with ...Ra1.} 28. Bxh6 {[%emt 0:01:49]} Ra1 {[%emt 0:00:07]} 29. Bxd5+ {[%emt 0:00:04]} Bxd5 {[%emt 0:02:29]} 30. Rxg7+ {[%emt 0:00:13]} Kf8 {[%emt 0:00:10] Weighted Error Value: White=0.74/Black=0.09 (flawless)} 0-1

[Event "41st Zalakaros Festival 2022"]
[Site "Zalakaros"]
[Date "2022.06.12"]
[Round "8.4"]
[White "Forgacs, Attila Jr."]
[Black "Bokorovics, Bertalan"]
[Result "0-1"]
[ECO "B90"]
[WhiteElo "2234"]
[BlackElo "2221"]
[Annotator "TA"]
[PlyCount "76"]
[EventDate "2022.06.05"]
[EventType "swiss"]
[EventCountry "HUN"]
[SourceTitle "playchess.com"]
[Source "ChessBase"]
[SourceQuality "1"]
[TimeControl "40/5400+30:1800+30"]

{[%evp 17,76,5,32,23,29,24,33,26,39,31,43,33,47,41,63,64,62,57,53,35,53,43,58,14,31,0,11,0,0,-242,-171,-342,-346,-513,-293,-271,-293,-281,-264,-243,-268,-216,-196,-491,-486,-488,-425,-1099,-1050,-29991,-29992,-29993,-29994,-29994,-29995,-29995,-29996,-29997,-29998,-29998,-29999]} 1. e4 {[%emt 0:00:33]} c5 {[%emt 0:00:34]} 2. Nf3 {[%emt 0:00:08]} d6 {[%emt 0:00:03]} 3. d4 {[%emt 0:00:05]} cxd4 {[%emt 0:00:03]} 4. Nxd4 {[%emt 0:00:06]} Nf6 {[%emt 0:00:02]} 5. Nc3 {[%emt 0:00:06]} a6 {[%emt 0:00:04]} 6. f3 {[%emt 0:00:07]} e5 {[%emt 0:01:48]} 7. Nb3 {[%emt 0:00:05]} Be7 {[%emt 0:01:56]} 8. Be3 {[%emt 0:00:11]} Be6 {[%emt 0:00:06]} 9. Qd2 {[%emt 0:00:07]} h5 {[%emt 0:00:05]} 10. Nd5 {[%emt 0:00:27] B90: Sicilian Najdorf: Unusual White 6th moves, 6 Be3 Ng4 and 6 Be3 e5.} Bxd5 {[%emt 0:01:25]} 11. exd5 {[%emt 0:00:18]} Nbd7 {[%emt 0:00:08]} 12. Be2 {[%emt 0:02:07] White is slightly better.} Qc7 {[%emt 0:00:09]} 13. c4 {[%emt 0:01:25]} a5 {[%emt 0:00:12]} 14. Rc1 {[%emt 0:00:49]} O-O {[%emt 0:00:48]} 15. O-O {[%emt 0:00:32]} h4 {[%emt 0:01:28]} 16. Na1 {[%emt 0:09:43][%cal Bb3a1,Ba1c2,Bc2a3,Ba3b5][%mdl 32]} Nh5 {[%emt 0:00:21][%cal Oh5f4]} 17. Nc2 {[%emt 0:02:47]} Bd8 {[%emt 0:00:14]} 18. Na3 {[%emt 0:04:03]} Nc5 $1 {[%emt 0:00:11] [#]} 19. Nb5 $146 {[%emt 0:01:41]} ({Predecessor:} 19. Bd1 Qe7 20. Bc2 a4 21. Rb1 Ba5 22. Qc1 f5 23. Bg5 Qe8 24. Bxh4 Nf4 25. Kh1 Qg6 26. g3 Ne2 27. Qe3 Nd4 28. Be7 Nxc2 29. Nxc2 f4 30. gxf4 exf4 {½-½ (30) Galliano,G (2419)-Oreopoulos,K (2497) ICCF email 2018}) 19... Qe7 {[%emt 0:00:08]} 20. b3 {[%emt 0:19:06]} f5 {[%emt 0:07:13]} 21. Rfe1 {[%emt 0:06:24]} (21. Bd3 $5) 21... Bb6 {[%emt 0:08:03]} 22. Bd1 {[%emt 0:13:12]} h3 {[%emt 0:12:17]} 23. a3 $2 {[%emt 0:02:42] Black continues to play with concentration.} (23. gxh3 $11 {and White stays safe.} Qh4 24. Bc2 (24. Nxd6 $2 Rf6 $19)) 23... Nf4 {[%emt 0:23:22]} 24. b4 $2 {[%emt 0:06:57]} (24. g3 Ng2 25. Bxc5 (25. Re2 $2 Nxe3 26. Qxe3 Nd7 $19) 25... Bxc5+ 26. Kh1) 24... axb4 $19 {[%emt 0:00:18]} 25. axb4 {[%emt 0:00:05] [#]} (25. g3 $142 Nfd3 26. axb4 Nxc1 27. bxc5) 25... hxg2 $1 {[%emt 0:03:05]} 26. bxc5 {[%emt 0:04:44]} Bxc5 {[%emt 0:00:44]} 27. Bxc5 {[%emt 0:12:16]} Qg5 {[%emt 0:02:16][%cal Rf4h3]} 28. Qxf4 {[%emt 0:01:31]} Qxf4 {[%emt 0:00:29] Dancing on a razor blade.} (28... exf4 29. Bxd6 Qh4 30. Bc2 $16) 29. Be3 {[%emt 0:00:17]} Qh4 {[%emt 0:00:58]} 30. Bb3 $2 {[%emt 0:03:08]} (30. Bf2 {was the only defense.} Qh3 31. f4) 30... Rf6 {[%emt 0:04:35] [#] And now ...f4 would win.} 31. Re2 {[%emt 0:04:44]} f4 {[%emt 0:04:58]} 32. Ba7 {[%emt 0:01:19]} (32. Bd2 $142 Qh3 33. Rxg2) 32... e4 {[%emt 0:02:58]} 33. Rc3 {[%emt 0:02:16]} Rh6 {[%emt 0:00:38] Black mates.} 34. Kxg2 {[%emt 0:00:29]} Qxh2+ {[%emt 0:00:56]} 35. Kf1 {[%emt 0:00:04]} Qh1+ {[%emt 0:00:16]} 36. Bg1 {[%emt 0:00:05]} Ra1+ {[%emt 0:00:46]} 37. Re1 {[%emt 0:00:13]} Rxe1+ {[%emt 0:00:09]} 38. Kxe1 {[%emt 0:00:04]} Qxg1+ {[%emt 0:00:08] Weighted Error Value: White=0.79/Black=0.19 (very precise)} 0-1

[Event "41st Zalakaros Festival 2022"]
[Site "Zalakaros"]
[Date "2022.06.12"]
[Round "8.5"]
[White "Pogany, Zsombor"]
[Black "Pasztor, Ferenc"]
[Result "1-0"]
[ECO "C43"]
[WhiteElo "2104"]
[BlackElo "2195"]
[Annotator "TA"]
[PlyCount "83"]
[EventDate "2022.06.05"]
[EventType "swiss"]
[EventCountry "HUN"]
[SourceTitle "playchess.com"]
[Source "ChessBase"]
[SourceQuality "1"]
[TimeControl "40/5400+30:1800+30"]

{[%evp 14,83,0,0,4,0,21,-6,2,0,52,41,46,56,60,36,54,43,32,44,46,40,22,0,6,0,61,60,90,18,15,18,100,71,71,71,81,43,200,186,184,150,718,685,6383,6193,29982,29983,29983,29984,29983,29979,29977,29976,29988,4814,29987,29988,29988,29989,29995,29996,29997,29996,29997,29983,29983,29983,29983,29984,29984,29983]} 1. e4 e5 {[%emt 0:00:38]} 2. Nf3 {[%emt 0:00:51]} Nf6 {[%emt 0:00:13]} 3. d4 {[%emt 0:00:27]} Nxe4 {[%emt 0:00:25]} 4. Bd3 {[%emt 0:00:23]} d5 {[%emt 0:00:26]} 5. Nxe5 {[%emt 0:00:33]} Nd7 {[%emt 0:02:02]} 6. Nc3 {[%emt 0:00:50]} Nxc3 {[%emt 0:02:19]} 7. bxc3 {[%emt 0:00:15]} Nxe5 {[%emt 0:00:20]} 8. dxe5 {[%emt 0:00:11]} Bc5 {[%emt 0:02:44] C43: Petroff Defence: 3 d4.} 9. O-O $1 {[%emt 0:01:06] 9.0-0 scores better than 9.Qh5.} (9. Qf3 {seems wilder.} O-O 10. O-O Re8 11. Re1) 9... Qe7 {[%emt 0:08:58]} 10. Rb1 {[%emt 0:13:20]} c6 {[%emt 0:01:35] The position is equal.} 11. Qh5 {[%emt 0:02:08] [#]} g6 $146 {[%emt 0:06:28]} (11... h6 $11) ({Predecessor:} 11... Be6 12. Bg5 Qd7 13. Kh1 b5 14. f4 g6 15. Qh4 Be7 16. Bf6 Kd8 17. a4 a6 18. axb5 cxb5 {1-0 (35) Kollars,D (2621)-Janik,I (2484) Legnica 2021}) 12. Qh6 $14 {[%emt 0:01:39] Bg5 is the strong threat.} Qf8 $1 {[%emt 0:07:45]} (12... Qxe5 $2 13. Bf4 Qe7 14. Bg5 $18) 13. Qh4 {[%emt 0:06:30] aiming for Bg5.} Be7 {[%emt 0:01:22]} 14. Qa4 {[%emt 0:04:39][%cal Od3a6]} Qg7 {[%emt 0:01:14] [#]} 15. Ba6 $1 {[%emt 0:12:25]} O-O {[%emt 0:11:01]} 16. Bxb7 {[%emt 0:02:52]} Bxb7 {[%emt 0:00:20]} (16... Rb8 17. Re1 $1 $16) 17. Rxb7 {[%emt 0:00:10]} Qxe5 {[%emt 0:02:09]} 18. Bf4 {[%emt 0:03:47]} (18. Qxc6 {is more complex.} Rfd8 19. Be3 Bd6 20. g3) 18... Qe6 {[%emt 0:07:18]} 19. Rxa7 {[%emt 0:06:17]} Rxa7 {[%emt 0:00:35]} (19... Rac8 $11) 20. Qxa7 {[%emt 0:00:05]} Bf6 {[%emt 0:00:18] [#]} 21. g3 {[%emt 0:06:21]} (21. a4 $1 $16) 21... Bxc3 $11 {[%emt 0:02:56]} 22. a4 {[%emt 0:00:55][%cal Ba2a4,Ba4a5][%mdl 32]} c5 {[%emt 0:21:13]} (22... h5 $1 $11) 23. Qxc5 {[%emt 0:04:15]} Rc8 {[%emt 0:00:08]} 24. Qb5 {[%emt 0:02:36]} h5 {[%emt 0:07:34]} 25. a5 {[%emt 0:07:10] Hoping for a6.} Rc6 {[%emt 0:04:19] Against a6} ({Black should play} 25... Ra8 $14) 26. Rd1 $18 {[%emt 0:01:46]} d4 {[%emt 0:03:15][%cal Oh5h4]} 27. h4 {[%emt 0:06:40][%cal Bh2h4,Bh4g5,Bg5f6][%mdl 32]} f6 $2 {[%emt 0:03:01] This move loses the game for Black.} (27... Kh7 $16 28. Rb1 Be1) 28. Rb1 {[%emt 0:00:43][%cal Oa5a6] And now a6! would win.} Qc8 {[%emt 0:02:30] Against a6} 29. Qd5+ {[%emt 0:02:05]} Kg7 {[%emt 0:00:20]} 30. Rb8 {[%emt 0:02:35]} Qe6 {[%emt 0:00:06]} 31. Qd8 {[%emt 0:00:40]} g5 {[%emt 0:00:44]} 32. hxg5 {[%emt 0:02:32]} Kg6 {[%emt 0:01:17]} 33. gxf6 {[%emt 0:02:07]} h4 {[%emt 0:00:35]} 34. gxh4 {[%emt 0:03:15]} ({Stronger than} 34. f7 Qe1+ 35. Kh2 (35. Kg2 h3+ 36. Kh2 Qxf2+ 37. Kxh3 Qf1+ 38. Kh2 Qf2+ 39. Kh3 Qf1+ 40. Kh2 Qf2+ 41. Kh3 $11) 35... Qxf2+ 36. Kh1 (36. Kh3 Qf1+ 37. Kh2 Qf2+ 38. Kh3 Qf1+ 39. Kh2 Qf2+ $11) 36... Qf1+ 37. Kh2 Qf2+ 38. Kh3 Qf1+ 39. Kh2 (39. Kg4 Qe2+ 40. Kh3 Qf1+ 41. Kh2 Qf2+ $11) 39... Qf2+ $11) (34. Qh8 $142 Qe1+ 35. Kg2 Qe4+ 36. Kh2 hxg3+ 37. Kxg3 Bb4 38. Qg7+ Kf5 39. Qh7+ Kxf6 40. Qxe4) 34... Qe1+ {[%emt 0:00:36]} 35. Kg2 {[%emt 0:00:05] White mates.} Qe4+ {[%emt 0:00:11]} 36. Kg3 {[%emt 0:00:30]} Qh1 {[%emt 0:01:03]} 37. Qe8+ {[%emt 0:01:21]} Kf5 {[%emt 0:00:23]} 38. Rb5+ {[%emt 0:00:29]} Kxf6 {[%emt 0:00:04]} 39. Qxc6+ {[%emt 0:00:16]} Qxc6 {[%emt 0:00:07]} 40. Rb6 {[%emt 0:00:00]} Qe6 {[%emt 0:00:00]} 41. Rxe6+ {[%emt 0:00:25]} Kxe6 {[%emt 0:00:43]} 42. a6 {[%emt 0:00:08] Weighted Error Value: White=0.11 (very precise) /Black=0.66} 1-0